bitfinex/quotes_SOLUSD_20251119
["timestamp","ask_amount","ask_price","bid_price","bid_amount"]
[1763593753431,0.1,136.97,136.94,1.76]
[1763593754014,6.19536952,136.95,136.94,1.76]
[1763593754811,10.72056021,136.95,136.94,1.76]
[1763593755623,11.44056021,136.95,136.88,10.72056021]
[1763593755813,10.72056021,136.93,136.89,1.76]
[1763593756317,11.44056021,136.93,136.89,1.76]
[1763593756523,11.44056021,136.92,136.89,1.76]
[1763593756850,10.72056021,136.91,136.89,1.76]
[1763593757148,0.72,136.94,136.89,1.76]
[1763593757337,10.72056021,136.92,136.89,1.76]
[1763593757853,0.72,136.96,136.9,10.72056021]
[1763593758017,10.72056021,136.95,136.9,11.41056021]
[1763593758341,10.72056021,136.95,136.89,27.18598806]
[1763593758528,10.72056021,136.93,136.89,19.88096]
[1763593758934,0.72,136.94,136.89,19.88096]
[1763593759108,0.72,136.92,136.89,1.76]
[1763593759445,0.72,136.92,136.89,12.48056021]
[1763593759823,10.72056021,136.95,136.9,10.72056021]
[1763593760034,10.72056021,136.93,136.89,1.76]
[1763593760546,0.66,136.93,136.89,12.48056021]
[1763593760720,0.66,136.93,136.89,1.76]
[1763593761047,11.38056021,136.93,136.89,1.76]
[1763593761651,0.66,136.93,136.9,10.72056021]
[1763593761814,0.66,136.93,136.89,12.48056021]
[1763593762338,11.38056021,136.95,136.91,10.72056021]
[1763593762527,0.66,136.95,136.92,1.76]
[1763593763230,11.38056021,136.95,136.92,1.76]
[1763593763746,10.72056021,136.93,136.86,7.3065797]
[1763593763953,10.72056021,136.91,136.87,12.48056021]
[1763593764246,11.38056021,136.92,136.87,13.20056021]
[1763593764424,10.72056021,136.91,136.87,12.48056021]
[1763593764632,10.72056021,136.89,136.87,1.76]
[1763593764934,0.1,136.97,136.87,1.76]
[1763593764935,11.38056021,136.9,136.87,1.76]
[1763593765525,0.1,136.97,136.87,1.76]
[1763593765526,10.72056021,136.88,136.87,1.76]
[1763593765726,0.66,136.88,136.87,1.76]
[1763593766036,11.38056021,136.88,136.87,1.76]
[1763593766347,4.87012636,136.96,136.87,1.76]
[1763593766653,10.72056021,136.89,136.87,1.76]
[1763593767148,10.72056021,136.9,136.87,1.76]
[1763593767360,11.38056021,136.92,136.87,12.48056021]
[1763593767531,0.66,136.91,136.87,12.48056021]
[1763593767725,10.72056021,136.92,136.87,12.48056021]
[1763593767952,0.66,136.96,136.9,10.72056021]
[1763593768243,10.72056021,136.93,136.91,1.76]
[1763593768631,0.1,136.97,136.91,1.76]
[1763593768833,10.72056021,136.95,136.91,1.76]
[1763593769347,0.66,136.94,136.91,1.76]
[1763593769848,10.72056021,136.95,136.91,1.76]
[1763593770026,0.66,136.95,136.91,12.48056021]
[1763593770227,11.38056021,136.95,136.91,1.76]
[1763593770446,0.1,136.97,136.92,10.72056021]
[1763593770633,11.48056021,136.97,136.92,10.72056021]
[1763593770839,11.48056021,136.97,136.93,10.72056021]
[1763593771034,11.48056021,136.97,136.94,1.76]
[1763593771333,0.66,136.96,136.94,1.76]
[1763593771532,11.38056021,136.96,136.94,1.76]
[1763593772146,10.72056021,136.96,136.94,1.76]
[1763593772340,11.38056021,136.95,136.94,1.76]
[1763593772656,11.38056021,136.96,136.94,1.76]
[1763593772947,0.66,136.96,136.94,1.76]
[1763593773756,10.82056021,136.97,136.94,2.44]
[1763593773757,0.1,136.97,136.94,2.44]
[1763593774049,0.1,136.97,136.94,12.48056021]
[1763593775034,0.1,136.97,136.95,11.40056021]
[1763593775363,0.1,136.97,136.95,10.72056021]
[1763593775953,0.1,136.97,136.95,11.40056021]
[1763593776354,0.1,136.97,136.94,9.06239371]
[1763593776561,0.1,136.97,136.94,12.48056021]
[1763593777070,0.1,136.97,136.94,13.16056021]
[1763593777561,0.1,136.97,136.95,10.72056021]
[1763593777959,0.1,136.97,136.95,11.40056021]
[1763593778271,0.1,136.97,136.96,21.1893879]
[1763593778662,1.33951329,137.0,136.97,9.78882769]
[1763593778839,1.33951329,137.0,136.98,1.76]
[1763593779045,1.33951329,137.0,136.99,10.72056021]
[1763593779248,1.33951329,137.0,136.99,11.34056021]
[1763593779558,1.33951329,137.0,136.99,21.1293879]
[1763593779739,1.33951329,137.0,136.99,10.72056021]
[1763593779941,1.99951329,137.0,136.98,1.76]
[1763593780247,1.99951329,137.0,136.97,18.12096]
[1763593780463,10.72056021,136.98,136.93,10.72056021]
[1763593780774,10.72056021,136.97,136.94,1.76]
[1763593780942,10.72056021,136.98,136.94,1.76]
[1763593781146,0.66,136.99,136.94,1.76]
[1763593781452,1.33951329,137.0,136.95,10.72056021]
[1763593781638,1.33951329,137.0,136.96,10.72056021]
[1763593781833,12.7200735,137.0,136.97,1.76]
[1763593782159,10.72056021,136.99,136.97,1.76]
[1763593782367,0.66,136.99,136.97,1.76]
[1763593782752,1.33951329,137.0,136.97,1.76]
[1763593783246,1.99951329,137.0,136.97,1.76]
[1763593784042,1.33951329,137.0,136.97,1.76]
[1763593784351,1.99951329,137.0,136.97,1.76]
[1763593785066,1.33951329,137.0,136.99,10.72056021]
[1763593785279,0.71951329,137.0,136.99,20.5093879]
[1763593785856,0.71951329,137.0,136.99,21.23936819]
[1763593786055,0.71951329,137.0,136.99,20.5093879]
[1763593786367,0.66,137.1,137.03,9.78882769]
[1763593786569,10.72056021,137.08,137.04,1.76]
[1763593786737,0.66,137.07,137.04,1.76]
[1763593786938,10.72056021,137.05,137.02,1.76]
[1763593787141,0.66,137.07,137.01,1.76]
[1763593787339,10.72056021,137.03,137.01,1.76]
[1763593787763,0.66,137.03,137.01,1.76]
[1763593787934,0.66,137.02,137.01,1.04]
[1763593788142,11.38056021,137.02,137.01,1.04]
[1763593788537,6.65809822,137.09,137.01,1.04]
[1763593788769,10.72056021,137.03,137.01,1.04]
[1763593788966,0.66,137.08,137.01,1.04]
[1763593789150,10.72056021,137.04,137.01,1.04]
[1763593789469,10.72056021,137.06,137.02,10.72056021]
[1763593789771,10.72056021,137.06,137.01,12.44056021]
[1763593789984,10.72056021,137.06,137.01,11.76056021]
[1763593790270,10.72056021,137.08,137.03,20.5093879]
[1763593790568,10.72056021,137.08,137.04,1.76]
[1763593791363,0.72,137.09,137.04,13.14056021]
[1763593791672,0.72,137.09,137.04,12.48056021]
[1763593791854,10.72056021,137.09,137.05,10.72056021]
[1763593792053,10.72056021,137.09,137.05,11.38056021]
[1763593792260,10.72056021,137.1,137.06,0.66]
[1763593792463,10.72056021,137.1,137.07,1.76]
[1763593793170,0.82,137.11,137.07,1.76]
[1763593793379,0.1,137.11,137.07,1.76]
[1763593793558,11.54056021,137.11,137.07,1.76]
[1763593793758,0.1,137.11,137.08,0.66]
[1763593794161,11.54056021,137.11,137.07,1.76]
[1763593794363,0.82,137.11,137.07,1.76]
[1763593794583,0.1,137.11,137.07,1.76]
[1763593794755,0.82,137.11,137.07,1.76]
[1763593794955,0.1,137.11,137.08,0.66]
[1763593795152,0.1,137.11,137.08,10.72056021]
[1763593795575,0.1,137.11,137.08,0.66]
[1763593795769,10.82056021,137.11,137.07,12.48056021]
[1763593795979,11.54056021,137.11,137.07,1.76]
[1763593796376,0.82,137.11,137.07,1.76]
[1763593796579,10.72056021,137.09,137.07,1.76]
[1763593797081,0.1,137.11,137.07,12.48056021]
[1763593797379,0.82,137.11,137.07,12.48056021]
[1763593798181,11.54056021,137.11,137.07,1.76]
[1763593798378,0.72,137.1,137.07,12.48056021]
[1763593798579,10.82056021,137.11,137.07,12.48056021]
[1763593798787,10.72056021,137.1,137.07,1.76]
[1763593798954,11.44056021,137.1,137.07,1.76]
[1763593799160,11.44056021,137.09,137.07,1.76]
[1763593799377,0.72,137.09,137.07,1.76]
[1763593800383,10.72056021,137.08,137.01,9.78882769]
[1763593800587,10.72056021,137.05,137.02,1.76]
[1763593800767,10.72056021,137.06,137.02,1.76]
[1763593801081,10.72056021,137.09,137.04,10.72056021]
[1763593801252,0.72,137.1,137.05,1.76]
[1763593801552,10.72056021,137.08,137.05,1.76]
[1763593801753,0.72,137.08,137.05,1.76]
[1763593801981,0.72,137.07,137.05,1.76]
[1763593802579,11.44056021,137.08,137.05,1.76]
[1763593803148,11.44056021,137.07,137.05,1.76]
[1763593805856,10.72056021,137.09,137.05,1.76]
[1763593806367,11.44056021,137.09,137.05,1.76]
[1763593806573,11.44056021,137.09,137.05,12.48056021]
[1763593806754,0.1,137.11,137.08,10.72056021]
[1763593807088,0.1,137.11,137.09,1.76]
[1763593807286,11.54056021,137.11,137.09,1.76]
[1763593807450,10.72056021,137.1,137.09,1.76]
[1763593807655,11.44056021,137.1,137.04,28.56978769]
[1763593807880,10.72056021,137.08,137.07,1.76]
[1763593808264,10.72056021,137.1,137.07,1.76]
[1763593808464,11.54056021,137.11,137.07,1.76]
[1763593808667,0.82,137.11,137.07,1.76]
[1763593808872,11.54056021,137.11,137.07,1.76]
[1763593809065,0.82,137.11,137.08,10.72056021]
[1763593809561,0.82,137.11,137.07,12.48056021]
[1763593810055,11.54056021,137.11,137.07,1.76]
[1763593810462,0.1,137.11,137.07,12.48056021]
[1763593810676,11.54056021,137.11,137.07,12.48056021]
[1763593811188,0.82,137.11,137.07,12.48056021]
[1763593811370,0.72,137.1,137.07,12.48056021]
[1763593811955,0.1,137.11,137.07,12.48056021]
[1763593812161,0.1,137.11,137.08,9.78882769]
[1763593812511,0.1,137.11,137.09,10.72056021]
[1763593812685,0.1,137.11,137.08,10.72056021]
[1763593812985,0.1,137.11,137.09,10.72056021]
[1763593813772,0.72,137.1,137.07,1.76]
[1763593813988,11.44056021,137.1,137.05,10.72056021]
[1763593814194,0.72,137.1,137.06,10.72056021]
[1763593814689,11.44056021,137.1,137.06,10.72056021]
[1763593815061,0.72,137.09,137.04,2.42]
[1763593815261,0.72,137.09,137.06,10.72056021]
[1763593815584,11.54056021,137.11,137.06,10.72056021]
[1763593815783,0.72,137.1,137.06,10.72056021]
[1763593815982,11.44056021,137.1,137.05,10.72056021]
[1763593816483,0.72,137.09,137.05,10.72056021]
[1763593816790,0.72,137.09,137.04,19.88096]
[1763593816791,6.14709688,137.08,137.04,1.76]
[1763593817275,0.72,137.07,137.04,1.76]
[1763593819067,6.14709688,137.05,136.99,0.66]
[1763593819274,6.14709688,137.04,137.0,6.14709688]
[1763593819594,6.14709688,137.03,136.99,6.14709688]
[1763593819973,0.67,137.02,136.99,6.14709688]
[1763593820683,18.12096,137.09,137.0,0.66]
[1763593820861,0.1,137.11,137.04,6.14709688]
[1763593821062,0.1,137.11,137.03,18.12096]
[1763593821063,0.67,137.09,137.05,1.76]
[1763593821274,0.67,137.09,137.06,6.14709688]
[1763593821680,0.67,137.09,137.05,1.76]
[1763593821681,6.81709688,137.09,137.05,1.76]
[1763593821987,6.14709688,137.08,137.05,1.76]
[1763593822186,6.14709688,137.06,137.05,1.76]
[1763593822408,6.14709688,137.06,137.02,1.76]
[1763593822561,0.67,137.05,137.02,7.90709688]
[1763593822963,6.81709688,137.05,137.02,1.76]
[1763593823172,0.67,137.04,137.02,1.76]
[1763593823365,0.67,137.04,137.0,6.14709688]
[1763593824587,0.67,137.04,136.99,1.76]
[1763593824775,0.67,137.04,136.99,7.90709688]
[1763593826085,6.81709688,137.04,136.99,1.76]
[1763593826259,6.81709688,137.04,136.99,7.90709688]
[1763593826260,0.71,137.03,136.99,7.90709688]
[1763593826461,0.71,137.03,136.99,1.76]
[1763593826691,6.14709688,137.01,136.95,7.90709688]
[1763593826993,0.71,137.03,136.96,6.14709688]
[1763593826994,6.14709688,137.02,136.96,6.14709688]
[1763593827288,0.71,137.01,136.96,6.14709688]
[1763593827539,0.71,137.01,136.95,19.88096]
[1763593827693,6.14709688,137.0,136.95,7.90709688]
[1763593827990,0.71,137.01,136.95,1.76]
[1763593828198,6.14709688,136.99,136.95,1.76]
[1763593828487,6.14709688,136.99,136.93,18.12096]
[1763593828666,0.71,136.98,136.94,6.14709688]
[1763593828866,0.71,136.98,136.93,26.02805688]
[1763593829066,6.14709688,136.97,136.93,1.76]
[1763593829266,0.71,136.98,136.93,1.76]
[1763593829485,6.14709688,136.96,136.91,6.14709688]
[1763593829692,6.14709688,136.95,136.9,7.90709688]
[1763593829872,0.71,136.96,136.9,1.76]
[1763593830071,6.14709688,136.95,136.9,1.76]
[1763593830272,6.14709688,136.94,136.9,1.76]
[1763593830568,6.14709688,136.93,136.88,6.14709688]
[1763593830769,6.14709688,136.95,136.9,6.14709688]
[1763593830995,6.14709688,136.96,136.88,18.12096]
[1763593831171,6.14709688,136.96,136.91,6.14709688]
[1763593831366,0.71,136.95,136.9,7.90709688]
[1763593832199,6.14709688,136.94,136.9,1.76]
[1763593832514,0.71,136.95,136.87,1.96]
[1763593832797,6.14709688,136.96,136.87,1.96]
[1763593832798,6.14709688,136.91,136.87,1.96]
[1763593832974,0.71,136.9,136.87,8.10709688]
[1763593833483,0.71,136.92,136.88,6.14709688]
[1763593833677,0.71,136.91,136.87,8.10709688]
[1763593834176,6.85709688,136.91,136.87,1.96]
[1763593834375,6.14709688,136.89,136.87,0.2]
[1763593834782,0.71,136.88,136.87,0.2]
[1763593836088,0.71,136.91,136.87,0.2]
[1763593836272,6.14709688,136.9,136.87,0.2]
[1763593836484,6.14709688,136.88,136.87,0.2]
[1763593836682,6.14709688,136.88,136.85,0.2]
[1763593836881,1.76,136.92,136.81,0.2]
[1763593836882,0.71,136.87,136.81,0.2]
[1763593837276,6.14709688,136.84,136.81,0.2]
[1763593837790,0.71,136.83,136.81,0.2]
[1763593838088,6.14709688,136.82,136.81,0.2]
[1763593838293,6.14709688,136.82,136.76,6.14709688]
[1763593838471,0.71,136.81,136.76,6.14709688]
[1763593838813,6.14709688,136.84,136.79,6.14709688]
[1763593839120,0.71,136.86,136.75,1.96]
[1763593839121,6.14709688,136.82,136.75,1.96]
[1763593839406,6.14709688,136.81,136.77,6.14709688]
[1763593839581,6.14709688,136.82,136.77,6.14709688]
[1763593839984,0.71,136.81,136.78,6.14709688]
[1763593840196,0.71,136.81,136.75,0.88]
[1763593840395,6.85709688,136.81,136.76,6.14709688]
[1763593840589,0.71,136.8,136.76,6.14709688]
[1763593840803,0.71,136.8,136.77,6.14709688]
[1763593841019,0.71,136.8,136.75,0.88]
[1763593841234,1.76,136.89,136.75,27.04478923]
[1763593841388,0.71,136.85,136.76,0.68]
[1763593841591,6.14709688,136.81,136.76,6.14709688]
[1763593841886,6.14709688,136.8,136.76,6.14709688]
[1763593842207,6.14709688,136.79,136.75,0.2]
[1763593842410,6.85709688,136.79,136.75,0.2]
[1763593842707,6.85709688,136.79,136.75,6.34709688]
[1763593843293,0.71,136.82,136.77,6.14709688]
[1763593843499,0.71,136.82,136.78,6.14709688]
[1763593843906,0.71,136.88,136.81,6.14709688]
[1763593844101,6.14709688,136.89,136.86,6.14709688]
[1763593844300,6.14709688,136.89,136.85,6.14709688]
[1763593844599,6.85709688,136.89,136.83,0.68]
[1763593844792,0.71,136.88,136.85,6.14709688]
[1763593845302,6.85709688,136.9,136.85,6.14709688]
[1763593845617,6.14709688,136.9,136.85,6.14709688]
[1763593845912,0.71,136.89,136.85,6.14709688]
[1763593846616,6.14709688,136.91,136.86,6.82709688]
[1763593846919,6.85709688,136.93,136.88,6.14709688]
[1763593847209,6.14709688,136.92,136.87,6.14709688]
[1763593847414,6.85709688,136.92,136.87,6.14709688]
[1763593847603,0.71,136.91,136.87,6.14709688]
[1763593849014,6.14709688,136.88,136.83,6.14709688]
[1763593849387,0.71,136.88,136.84,6.14709688]
[1763593850054,0.71,136.88,136.84,6.81709688]
[1763593850705,0.71,136.88,136.85,6.14709688]
[1763593851635,6.79709688,136.9,136.85,6.14709688]
[1763593851803,0.65,136.89,136.85,6.14709688]
[1763593852005,18.12096,136.94,136.83,7.30820382]
[1763593852320,0.65,136.91,136.87,6.14709688]
[1763593853406,6.79709688,136.91,136.87,0.67]
[1763593853626,0.65,136.91,136.87,6.81709688]
[1763593854034,0.65,136.91,136.87,6.14709688]
[1763593854328,6.14709688,136.9,136.85,6.14709688]
[1763593854715,0.65,136.9,136.86,6.81709688]
[1763593854920,6.14709688,136.91,136.86,6.81709688]
[1763593855128,6.79709688,136.91,136.86,6.81709688]
[1763593855514,0.65,136.91,136.87,6.14709688]
[1763593855820,6.79709688,136.93,136.88,6.14709688]
[1763593856329,0.65,136.92,136.88,6.14709688]
[1763593856531,6.79709688,136.92,136.87,6.81709688]
[1763593856711,0.65,136.92,136.83,7.30811806]
[1763593856912,6.14709688,136.9,136.85,6.14709688]
[1763593857147,0.65,136.91,136.84,6.81709688]
[1763593857324,6.14709688,136.89,136.84,0.67]
[1763593857839,0.65,136.89,136.84,6.81709688]
[1763593858442,6.14709688,136.88,136.82,1.76]
[1763593858623,6.14709688,136.88,136.83,0.67]
[1763593859038,6.79709688,136.88,136.83,0.67]
[1763593859612,6.14709688,136.84,136.82,1.76]
[1763593859809,6.14709688,136.85,136.82,1.76]
[1763593860110,0.65,136.89,136.83,0.67]
[1763593860348,0.65,136.92,136.85,6.14709688]
[1763593860515,6.14709688,136.93,136.87,6.14709688]
[1763593861031,18.12096,136.96,136.86,1.76]
[1763593861032,6.14709688,136.9,136.86,1.76]
[1763593861224,6.14709688,136.87,136.82,0.67]
[1763593861442,6.14709688,136.87,136.82,2.43]
[1763593861768,6.14709688,136.85,136.82,1.76]
[1763593862235,6.79709688,136.86,136.82,2.43]
[1763593862564,20.12095999,136.93,136.83,0.67]
[1763593862565,6.14709688,136.87,136.83,0.67]
[1763593862865,6.14709688,136.85,136.82,1.76]
[1763593863158,0.65,136.89,136.83,0.67]
[1763593863450,6.14709688,136.87,136.83,0.67]
[1763593863638,6.14709688,136.87,136.82,1.76]
[1763593863837,6.14709688,136.87,136.83,0.67]
[1763593864767,6.14709688,136.84,136.78,0.67]
[1763593864945,6.14709688,136.8,136.77,0.67]
[1763593865128,6.14709688,136.81,136.77,0.67]
[1763593865328,6.14709688,136.82,136.77,0.67]
[1763593865528,6.14709688,136.81,136.77,0.67]
[1763593866952,6.14709688,136.88,136.77,6.81709688]
[1763593866953,6.14709688,136.83,136.77,6.81709688]
[1763593867252,6.14709688,136.82,136.77,0.67]
[1763593867427,6.79709688,136.81,136.77,18.79096]
[1763593867627,6.14709688,136.8,136.77,0.67]
[1763593868140,6.14709688,136.79,136.76,1.76]
[1763593868329,6.79709688,136.8,136.76,1.76]
[1763593868528,0.65,136.85,136.77,0.67]
[1763593868725,1.76,136.86,136.77,6.81709688]
[1763593868938,6.14709688,136.82,136.77,0.67]
[1763593869157,6.14709688,136.82,136.78,0.67]
[1763593869372,0.65,136.85,136.78,0.67]
[1763593869373,6.14709688,136.83,136.78,0.67]
[1763593869862,0.65,136.85,136.78,0.67]
[1763593869863,6.79709688,136.85,136.79,6.14709688]
[1763593870080,6.14709688,136.86,136.8,7.90709688]
[1763593870243,0.65,136.87,136.8,1.76]
[1763593870445,6.79709688,136.86,136.8,8.57709688]
[1763593870642,6.79709688,136.86,136.8,7.90709688]
[1763593870853,6.79709688,136.86,136.81,0.67]
[1763593871464,23.00748666,136.9,136.81,6.81709688]
[1763593871763,0.65,136.88,136.82,6.14709688]
[1763593871935,6.79709688,136.88,136.83,6.14709688]
[1763593872137,6.79709688,136.88,136.84,1.76]
[1763593872360,0.65,136.88,136.84,1.76]
[1763593872564,0.65,136.9,136.85,0.67]
[1763593872774,6.14709688,136.92,136.86,6.14709688]
[1763593873156,6.79709688,136.92,136.86,6.81709688]
[1763593873741,6.79709688,136.92,136.86,0.67]
[1763593873941,6.14709688,136.9,136.83,18.79096]
[1763593874150,6.14709688,136.87,136.83,0.67]
[1763593874362,6.14709688,136.87,136.84,1.76]
[1763593874538,6.79709688,136.87,136.83,0.67]
[1763593874741,6.14709688,136.85,136.83,1.76]
[1763593874964,6.14709688,136.87,136.83,2.43]
[1763593875274,6.14709688,136.86,136.83,1.76]
[1763593875477,6.72532794,136.93,136.83,1.76]
[1763593875653,6.14709688,136.86,136.83,1.76]
[1763593876056,0.65,136.9,136.84,6.81709688]
[1763593876380,0.65,136.93,136.86,6.14709688]
[1763593876683,6.14709688,136.95,136.9,6.14709688]
[1763593876851,10.72166253,136.95,136.91,1.76]
[1763593877353,0.65,136.94,136.9,1.76]
[1763593877556,11.37166253,136.94,136.9,1.76]
[1763593878281,0.65,136.93,136.9,1.76]
[1763593878475,10.72166253,136.94,136.9,1.76]
[1763593878683,11.37166253,136.94,136.9,1.76]
[1763593878979,0.65,136.93,136.9,1.76]
[1763593879280,10.72166253,136.95,136.9,1.76]
[1763593879577,10.72166253,136.95,136.91,0.67]
[1763593879882,0.1,136.97,136.92,10.72166253]
[1763593880379,0.1,136.97,136.96,10.72166253]
[1763593880560,0.1,136.97,136.96,13.17166253]
[1763593880757,11.51166253,136.97,136.95,1.76]
[1763593881065,10.72166253,136.96,136.91,1.76]
[1763593881380,0.69,136.96,136.91,1.76]
[1763593881681,10.72166253,136.93,136.9,1.76]
[1763593882069,11.41166253,136.93,136.9,1.76]
[1763593882267,10.72166253,136.93,136.9,1.76]
[1763593882461,11.41166253,136.93,136.9,1.76]
[1763593882659,10.72166253,136.91,136.85,11.41166253]
[1763593882971,10.72166253,136.91,136.86,2.45]
[1763593883368,11.41166253,136.92,136.86,13.17166253]
[1763593883573,10.72166253,136.92,136.87,11.41166253]
[1763593883900,4.99068916,136.97,136.87,11.41166253]
[1763593883901,4.99068916,136.97,136.9,10.72166253]
[1763593884074,10.72166253,136.93,136.91,1.76]
[1763593884387,0.69,136.96,136.89,11.41166253]
[1763593884593,10.72166253,136.94,136.89,11.41166253]
[1763593884774,10.72166253,136.94,136.89,0.69]
[1763593885090,11.41166253,136.94,136.89,0.69]
[1763593885285,0.79,136.97,136.9,10.72166253]
[1763593885585,10.72166253,136.95,136.9,10.72166253]
[1763593885788,10.72166253,136.95,136.91,0.69]
[1763593885978,0.1,136.97,136.94,10.72166253]
[1763593886183,0.1,136.97,136.95,10.72166253]
[1763593886482,0.1,136.97,136.96,1.76]
[1763593890297,0.79,136.97,136.92,10.47882769]
[1763593890590,0.69,136.96,136.91,10.72166253]
[1763593890787,10.72166253,136.95,136.9,0.69]
[1763593890993,11.41166253,136.94,136.88,0.69]
[1763593891173,11.41166253,136.94,136.91,1.76]
[1763593891495,10.72166253,136.92,136.9,1.76]
[1763593891667,11.41166253,136.92,136.9,1.76]
[1763593892288,11.41166253,136.91,136.87,1.76]
[1763593892671,10.72166253,136.92,136.87,13.17166253]
[1763593893081,0.69,136.91,136.87,13.17166253]
[1763593893262,1.76,136.95,136.87,12.48166253]
[1763593893461,10.72166253,136.93,136.88,10.72166253]
[1763593893679,10.72166253,136.91,136.87,1.76]
[1763593893887,11.41166253,136.92,136.87,1.76]
[1763593894065,0.69,136.91,136.87,1.76]
[1763593894264,0.69,136.91,136.88,1.76]
[1763593894689,11.41166253,136.93,136.88,12.48166253]
[1763593894890,10.72166253,136.93,136.88,12.48166253]
[1763593895187,0.69,136.92,136.88,1.76]
[1763593895409,0.69,136.92,136.88,13.17166253]
[1763593895966,0.69,136.92,136.88,2.45]
[1763593896169,11.41166253,136.92,136.88,1.76]
[1763593896405,10.72166253,136.91,136.88,1.76]
[1763593896584,11.41166253,136.92,136.88,1.76]
[1763593896911,0.69,136.96,136.9,10.72166253]
[1763593897072,11.41166253,136.96,136.91,1.76]
[1763593897281,10.72166253,136.95,136.91,1.76]
[1763593897480,11.41166253,136.95,136.91,1.76]
[1763593897777,0.69,136.94,136.91,1.76]
[1763593898087,11.41166253,136.94,136.91,1.76]
[1763593898802,10.72166253,136.96,136.91,1.76]
[1763593898985,10.72166253,136.95,136.91,1.76]
[1763593899186,11.41166253,136.95,136.91,1.76]
[1763593899493,0.69,136.94,136.91,1.76]
[1763593899881,10.72166253,136.93,136.9,1.76]
[1763593900101,11.41166253,136.94,136.9,1.76]
[1763593900390,0.69,136.93,136.9,1.76]
[1763593900798,11.41166253,136.93,136.9,1.76]
[1763593901371,0.69,136.96,136.9,13.17166253]
[1763593901586,10.72166253,136.94,136.9,1.76]
[1763593902073,0.69,136.93,136.9,1.76]
[1763593902301,0.69,136.94,136.9,13.17166253]
[1763593902619,10.72166253,136.95,136.9,1.76]
[1763593902802,0.69,136.93,136.9,1.76]
[1763593903393,11.41166253,136.93,136.9,1.76]
[1763593903585,0.69,136.93,136.9,1.76]
[1763593904378,0.69,136.93,136.88,11.41166253]
[1763593904581,11.41166253,136.93,136.89,1.76]
[1763593904793,11.41166253,136.93,136.86,10.72166253]
[1763593904794,10.72166253,136.92,136.86,10.72166253]
[1763593905109,11.41166253,136.93,136.89,1.76]
[1763593905603,0.69,136.93,136.89,1.76]
[1763593906203,11.41166253,136.95,136.89,13.17166253]
[1763593906507,11.41166253,136.95,136.9,10.72166253]
[1763593906808,0.69,136.94,136.9,10.72166253]
[1763593907306,0.69,136.94,136.89,13.17166253]
[1763593907615,11.41166253,136.94,136.89,1.76]
[1763593907900,10.72166253,136.93,136.89,1.76]
[1763593908110,10.72166253,136.92,136.89,1.76]
[1763593908307,10.72166253,136.91,136.89,1.76]
[1763593908481,11.41166253,136.91,136.89,1.76]
[1763593908802,11.41166253,136.91,136.86,10.72166253]
[1763593908803,11.41166253,136.9,136.84,10.72166253]
[1763593909117,10.72166253,136.91,136.86,12.48166253]
[1763593909280,10.72166253,136.93,136.87,10.72166253]
[1763593909479,10.72166253,136.93,136.87,11.41166253]
[1763593909719,1.86,136.97,136.89,10.72166253]
[1763593909901,11.39166253,136.94,136.89,12.48166253]
[1763593910283,0.67,136.93,136.89,12.48166253]
[1763593910602,0.67,136.93,136.89,1.76]
[1763593910791,11.39166253,136.93,136.89,1.76]
[1763593911104,0.67,136.93,136.89,1.76]
[1763593911286,0.67,136.92,136.89,1.76]
[1763593912394,10.72166253,136.93,136.89,1.76]
[1763593912704,0.67,136.93,136.89,1.76]
[1763593912890,0.1,136.97,136.89,1.76]
[1763593912891,10.72166253,136.95,136.89,12.48166253]